[Event "December 12 Early 2023"]
[Site "https://www.chess.com"]
[Date "2023.12.12"]
[Round "3"]
[White "Martinez Alcantara, Jose Eduardo"]
[Black "Krysa, Leandro"]
[Result "1-0"]
[Board "12"]
[TimeControl "180+1"]
[WhiteFideId "3805662"]
[BlackFideId "116807"]
[WhiteElo "3018"]
[BlackElo "2744"]
[WhiteTeam "PER"]
[BlackTeam "ARG"]
[WhiteClock "0:00:15"]
[BlackClock "0:00:02"]

1. e4 {[%clk 0:03:00]}  e5 {[%clk 0:03:00]} 2. Nf3 {[%clk 0:02:59]}  Nc6 {[%clk 0:03:00]} 3. Nc3 {[%clk 0:03:00]}  Nf6 {[%clk 0:02:59]} 4. h3 {[%clk 0:02:59]}  d5 {[%clk 0:02:55]} 5. Bb5 {[%clk 0:03:00]}  Nxe4 {[%clk 0:02:49]} 6. O-O {[%clk 0:02:59]}  Nxc3 {[%clk 0:02:44]} 7. dxc3 {[%clk 0:03:00]}  f6 {[%clk 0:02:44]} 8. Nxe5 {[%clk 0:02:59]}  fxe5 {[%clk 0:02:36]} 9. Qh5+ {[%clk 0:02:59]}  Kd7 {[%clk 0:02:30]} 10. Qxe5 {[%clk 0:02:58]}  Qf6 {[%clk 0:02:07]} 11. Qxd5+ {[%clk 0:02:57]}  Bd6 {[%clk 0:02:07]} 12. c4 {[%clk 0:02:53]}  a6 {[%clk 0:01:57]} 13. Ba4 {[%clk 0:02:53]}  Rf8 {[%clk 0:01:25]} 14. c5 {[%clk 0:02:17]}  Qe5 {[%clk 0:01:24]} 15. Qxe5 {[%clk 0:02:17]}  Bxe5 {[%clk 0:01:23]} 16. Re1 {[%clk 0:02:18]}  Bf6 {[%clk 0:00:45]} 17. Bf4 {[%clk 0:01:28]}  Kd8 {[%clk 0:00:44]} 18. Rad1+ {[%clk 0:01:27]}  Bd7 {[%clk 0:00:44]} 19. Bg3 {[%clk 0:01:16]}  Kc8 {[%clk 0:00:39]} 20. c3 {[%clk 0:01:14]}  Re8 {[%clk 0:00:28]} 21. Bb3 {[%clk 0:01:03]}  Rxe1+ {[%clk 0:00:26]} 22. Rxe1 {[%clk 0:01:04]}  b6 {[%clk 0:00:24]} 23. cxb6 {[%clk 0:01:02]}  cxb6 {[%clk 0:00:25]} 24. Rd1 {[%clk 0:01:01]}  Ra7 {[%clk 0:00:23]} 25. Bf4 {[%clk 0:00:57]}  Na5 {[%clk 0:00:22]} 26. Bg8 {[%clk 0:00:53]}  h6 {[%clk 0:00:22]} 27. Be3 {[%clk 0:00:52]}  Kc7 {[%clk 0:00:19]} 28. Bd5 {[%clk 0:00:36]}  Nc6 {[%clk 0:00:15]} 29. Bf4+ {[%clk 0:00:32]}  Kc8 {[%clk 0:00:16]} 30. Be3 {[%clk 0:00:30]}  Kc7 {[%clk 0:00:16]} 31. a3 {[%clk 0:00:31]}  Ra8 {[%clk 0:00:15]} 32. Bf4+ {[%clk 0:00:30]}  Kc8 {[%clk 0:00:15]} 33. b4 {[%clk 0:00:31]}  Bd8 {[%clk 0:00:13]} 34. c4 {[%clk 0:00:31]}  Bc7 {[%clk 0:00:13]} 35. Be3 {[%clk 0:00:32]}  Kb7 {[%clk 0:00:13]} 36. b5 {[%clk 0:00:32]}  axb5 {[%clk 0:00:13]} 37. cxb5 {[%clk 0:00:33]}  Rxa3 {[%clk 0:00:13]} 38. Rc1 {[%clk 0:00:33]}  Kc8 {[%clk 0:00:05]} 39. bxc6 {[%clk 0:00:32]}  Bf5 {[%clk 0:00:05]} 40. g4 {[%clk 0:00:32]}  Bg6 {[%clk 0:00:04]} 41. Be6+ {[%clk 0:00:31]}  Kb8 {[%clk 0:00:04]} 42. Rd1 {[%clk 0:00:31]}  Be8 {[%clk 0:00:03]} 43. Bd7 {[%clk 0:00:31]}  Bf7 {[%clk 0:00:02]} 44. Bf5 {[%clk 0:00:31]}  Rb3 {[%clk 0:00:02]} 45. Rd7 {[%clk 0:00:31]}  Bc4 {[%clk 0:00:02]} 46. Rxg7 {[%clk 0:00:26]}  Bd5 {[%clk 0:00:02]} 47. Rd7 {[%clk 0:00:11]}  Bxc6 {[%clk 0:00:01]} 48. Rd1 {[%clk 0:00:11]}  Ra3 {[%clk 0:00:02]} 49. Rc1 {[%clk 0:00:12]}  Kb7 {[%clk 0:00:01]} 50. h4 {[%clk 0:00:12]}  Be5 {[%clk 0:00:02]} 51. h5 {[%clk 0:00:12]}  Ra1 {[%clk 0:00:01]} 52. Rxa1 {[%clk 0:00:12]}  Bxa1 {[%clk 0:00:02]} 53. Bxh6 {[%clk 0:00:13]}  b5 {[%clk 0:00:02]} 54. Bd2 {[%clk 0:00:13]}  b4 {[%clk 0:00:03]} 55. Bxb4 {[%clk 0:00:13]}  Bf6 {[%clk 0:00:03]} 56. Bd2 {[%clk 0:00:14]}  Kc7 {[%clk 0:00:03]} 57. g5 {[%clk 0:00:15]}  Be5 {[%clk 0:00:03]} 58. h6 {[%clk 0:00:15]}  Kd8 {[%clk 0:00:03]} 59. g6 {[%clk 0:00:15]}  Ke7 {[%clk 0:00:03]} 60. Bg5+ {[%clk 0:00:16]}  Kf8 {[%clk 0:00:03]} 61. g7+ {[%clk 0:00:15]}  Kg8 {[%clk 0:00:02]} 62. Be6+ {[%clk 0:00:15]} 1-0

[Event "December 12 Early 2023"]
[Site "https://www.chess.com"]
[Date "2023.12.12"]
[Round "3"]
[White "Krzyzanowski, Marcin"]
[Black "Vokhidov, Shamsiddin"]
[Result "0-1"]
[Board "13"]
[TimeControl "180+1"]
[WhiteFideId "1132199"]
[BlackFideId "14204223"]
[WhiteElo "2740"]
[BlackElo "3013"]
[WhiteTeam "POL"]
[BlackTeam "UZB"]
[WhiteClock "0:00:00"]
[BlackClock "0:00:50"]

1. e4 {[%clk 0:03:00]}  c5 {[%clk 0:03:00]} 2. Nf3 {[%clk 0:03:00]}  d6 {[%clk 0:03:00]} 3. d4 {[%clk 0:03:00]}  cxd4 {[%clk 0:03:01]} 4. Nxd4 {[%clk 0:03:01]}  Nf6 {[%clk 0:03:02]} 5. Nc3 {[%clk 0:03:01]}  Nc6 {[%clk 0:03:03]} 6. Bg5 {[%clk 0:02:59]}  Bd7 {[%clk 0:03:03]} 7. Qd2 {[%clk 0:02:55]}  a6 {[%clk 0:03:04]} 8. O-O-O {[%clk 0:02:55]}  e6 {[%clk 0:03:04]} 9. Kb1 {[%clk 0:02:54]}  Nxd4 {[%clk 0:03:03]} 10. Qxd4 {[%clk 0:02:55]}  Be7 {[%clk 0:03:04]} 11. f3 {[%clk 0:02:51]}  Qc7 {[%clk 0:03:03]} 12. g4 {[%clk 0:02:43]}  b5 {[%clk 0:03:03]} 13. h4 {[%clk 0:02:28]}  O-O {[%clk 0:02:53]} 14. Be3 {[%clk 0:02:11]}  Rfc8 {[%clk 0:02:50]} 15. g5 {[%clk 0:02:00]}  Ne8 {[%clk 0:02:49]} 16. Qd2 {[%clk 0:01:51]}  b4 {[%clk 0:02:48]} 17. Ne2 {[%clk 0:01:51]}  a5 {[%clk 0:02:43]} 18. h5 {[%clk 0:01:33]}  a4 {[%clk 0:02:43]} 19. Nc1 {[%clk 0:01:11]}  b3 {[%clk 0:02:33]} 20. cxb3 {[%clk 0:01:10]}  axb3 {[%clk 0:02:34]} 21. Nxb3 {[%clk 0:01:10]}  Qb7 {[%clk 0:02:28]} 22. g6 {[%clk 0:00:58]}  Ba4 {[%clk 0:02:16]} 23. gxf7+ {[%clk 0:00:58]}  Kxf7 {[%clk 0:02:16]} 24. Qd3 {[%clk 0:00:43]}  Nf6 {[%clk 0:02:07]} 25. Bh3 {[%clk 0:00:41]}  Bb5 {[%clk 0:02:05]} 26. Bxe6+ {[%clk 0:00:41]}  Kf8 {[%clk 0:01:52]} 27. Qd2 {[%clk 0:00:40]}  Qa6 {[%clk 0:01:44]} 28. a3 {[%clk 0:00:28]}  Rcb8 {[%clk 0:01:41]} 29. h6 {[%clk 0:00:27]}  g6 {[%clk 0:01:39]} 30. Bd4 {[%clk 0:00:27]}  Ba4 {[%clk 0:01:32]} 31. Qg5 {[%clk 0:00:11]}  Rb5 {[%clk 0:01:24]} 32. Qf4 {[%clk 0:00:09]}  g5 {[%clk 0:01:22]} 33. Qe3 {[%clk 0:00:08]}  Rab8 {[%clk 0:01:22]} 34. Rd3 {[%clk 0:00:08]}  Qb7 {[%clk 0:01:16]} 35. Rc1 {[%clk 0:00:05]}  Bxb3 {[%clk 0:01:15]} 36. Bxb3 {[%clk 0:00:04]}  Rxb3 {[%clk 0:01:16]} 37. Rxb3 {[%clk 0:00:02]}  Qxb3 {[%clk 0:01:16]} 38. Qxg5 {[%clk 0:00:02]}  Qd3+ {[%clk 0:01:15]} 39. Ka1 {[%clk 0:00:02]}  Qxd4 {[%clk 0:01:15]} 40. Rc2 {[%clk 0:00:02]}  Qd1+ {[%clk 0:01:09]} 41. Rc1 {[%clk 0:00:02]}  Qd4 {[%clk 0:00:59]} 42. Qg7+ {[%clk 0:00:02]}  Ke8 {[%clk 0:00:58]} 43. Qh8+ {[%clk 0:00:03]}  Bf8 {[%clk 0:00:55]} 44. Rc3 {[%clk 0:00:03]}  Qg1+ {[%clk 0:00:51]} 45. Ka2 {[%clk 0:00:03]}  Qg8+ {[%clk 0:00:52]} 46. Qxg8 {[%clk 0:00:02]}  Nxg8 {[%clk 0:00:53]} 47. a4 {[%clk 0:00:03]}  Ra8 {[%clk 0:00:51]} 48. b3 {[%clk 0:00:02]}  Nxh6 {[%clk 0:00:50]} 49. Rc7 {[%clk 0:00:01]}  Nf7 {[%clk 0:00:50]} 50. Rb7 {[%clk 0:00:00]}  h5 {[%clk 0:00:50]} 0-1

[Event "December 12 Early 2023"]
[Site "https://www.chess.com"]
[Date "2023.12.12"]
[Round "3"]
[White "Matinian, Nikita"]
[Black "Terry, Renato"]
[Result "1-0"]
[Board "16"]
[TimeControl "180+1"]
[WhiteFideId "24129100"]
[BlackFideId "3803457"]
[WhiteElo "2725"]
[BlackElo "2985"]
[WhiteTeam "FID"]
[BlackTeam "PER"]
[WhiteClock "0:00:04"]
[BlackClock "0:00:05"]

1. e4 {[%clk 0:02:34]}  e6 {[%clk 0:03:00]} 2. d4 {[%clk 0:02:34]}  d5 {[%clk 0:03:00]} 3. Nc3 {[%clk 0:02:35]}  Nf6 {[%clk 0:03:00]} 4. Bg5 {[%clk 0:02:35]}  Bb4 {[%clk 0:03:00]} 5. e5 {[%clk 0:02:36]}  h6 {[%clk 0:03:00]} 6. Bc1 {[%clk 0:02:35]}  Ne4 {[%clk 0:03:00]} 7. Qg4 {[%clk 0:02:30]}  g6 {[%clk 0:03:00]} 8. Ne2 {[%clk 0:02:29]}  c5 {[%clk 0:02:56]} 9. a3 {[%clk 0:02:30]}  Bxc3+ {[%clk 0:02:53]} 10. bxc3 {[%clk 0:02:25]}  cxd4 {[%clk 0:02:53]} 11. cxd4 {[%clk 0:02:22]}  Qa5+ {[%clk 0:02:53]} 12. c3 {[%clk 0:02:22]}  Bd7 {[%clk 0:02:53]} 13. f3 {[%clk 0:02:15]}  Bb5 {[%clk 0:02:53]} 14. fxe4 {[%clk 0:02:11]}  Bxe2 {[%clk 0:02:53]} 15. Qg3 {[%clk 0:01:56]}  Bxf1 {[%clk 0:02:46]} 16. Rxf1 {[%clk 0:01:57]}  dxe4 {[%clk 0:02:39]} 17. Bd2 {[%clk 0:01:55]}  Nc6 {[%clk 0:02:32]} 18. Qf4 {[%clk 0:01:55]}  Rh7 {[%clk 0:02:26]} 19. Qxe4 {[%clk 0:01:52]}  O-O-O {[%clk 0:02:24]} 20. Rf3 {[%clk 0:01:46]}  Qa4 {[%clk 0:02:16]} 21. Kf2 {[%clk 0:01:18]}  Na5 {[%clk 0:02:14]} 22. Rb1 {[%clk 0:01:13]}  Qc6 {[%clk 0:02:09]} 23. Qxc6+ {[%clk 0:01:09]}  Nxc6 {[%clk 0:02:09]} 24. Ke3 {[%clk 0:01:05]}  Rd7 {[%clk 0:02:05]} 25. Rbf1 {[%clk 0:01:05]}  Kd8 {[%clk 0:01:55]} 26. Ke4 {[%clk 0:01:05]}  Ke8 {[%clk 0:01:54]} 27. Rh3 {[%clk 0:01:06]}  h5 {[%clk 0:01:53]} 28. g4 {[%clk 0:01:06]}  b5 {[%clk 0:01:47]} 29. gxh5 {[%clk 0:01:03]}  gxh5 {[%clk 0:01:42]} 30. Rg1 {[%clk 0:01:04]}  Ne7 {[%clk 0:01:42]} 31. Rb1 {[%clk 0:00:58]}  a6 {[%clk 0:01:39]} 32. a4 {[%clk 0:00:56]}  bxa4 {[%clk 0:01:20]} 33. Rb6 {[%clk 0:00:39]}  Ra7 {[%clk 0:01:13]} 34. c4 {[%clk 0:00:39]}  Rg7 {[%clk 0:00:56]} 35. Rxh5 {[%clk 0:00:38]}  Rg4+ {[%clk 0:00:56]} 36. Kd3 {[%clk 0:00:31]}  Ng6 {[%clk 0:00:52]} 37. Rb8+ {[%clk 0:00:27]}  Kd7 {[%clk 0:00:42]} 38. Rh7 {[%clk 0:00:20]}  Kc6 {[%clk 0:00:42]} 39. Ba5 {[%clk 0:00:20]}  Rf4 {[%clk 0:00:36]} 40. Rb6+ {[%clk 0:00:14]}  Kd7 {[%clk 0:00:33]} 41. Rd6+ {[%clk 0:00:11]}  Ke8 {[%clk 0:00:22]} 42. Rg7 {[%clk 0:00:10]}  Kf8 {[%clk 0:00:19]} 43. Rh7 {[%clk 0:00:09]}  Kg8 {[%clk 0:00:17]} 44. Rh3 {[%clk 0:00:06]}  Ra8 {[%clk 0:00:17]} 45. Rg3 {[%clk 0:00:04]}  a3 {[%clk 0:00:17]} 46. Bc3 {[%clk 0:00:03]}  a2 {[%clk 0:00:12]} 47. d5 {[%clk 0:00:03]}  Kh7 {[%clk 0:00:04]} 48. dxe6 {[%clk 0:00:03]}  fxe6 {[%clk 0:00:05]} 49. Rd7+ {[%clk 0:00:03]}  Kh6 {[%clk 0:00:05]} 50. Rh3+ {[%clk 0:00:03]}  Kg5 {[%clk 0:00:05]} 51. Rg7 {[%clk 0:00:04]}  Rd8+ {[%clk 0:00:03]} 52. Ke3 {[%clk 0:00:04]}  Rg4 {[%clk 0:00:03]} 53. Rf3 {[%clk 0:00:04]}  Kh5 {[%clk 0:00:02]} 54. Rh3+ {[%clk 0:00:03]}  Kg5 {[%clk 0:00:02]} 55. Rf3 {[%clk 0:00:04]}  Rg8 {[%clk 0:00:03]} 56. Rxg8 {[%clk 0:00:04]}  Kh5 {[%clk 0:00:03]} 57. Rg7 {[%clk 0:00:03]}  Kh6 {[%clk 0:00:03]} 58. Rg8 {[%clk 0:00:03]}  Rxc4 {[%clk 0:00:03]} 59. Bb2 {[%clk 0:00:03]}  Rc2 {[%clk 0:00:03]} 60. Rh3+ {[%clk 0:00:03]}  Kg5 {[%clk 0:00:03]} 61. Bd4 {[%clk 0:00:02]}  Rc4 {[%clk 0:00:02]} 62. Rg3+ {[%clk 0:00:02]}  Kh5 {[%clk 0:00:02]} 63. R8xg6 {[%clk 0:00:02]}  Rxd4 {[%clk 0:00:02]} 64. R6g5+ {[%clk 0:00:03]}  Kh6 {[%clk 0:00:02]} 65. Rg8 {[%clk 0:00:03]}  Kh7 {[%clk 0:00:03]} 66. R8g7+ {[%clk 0:00:03]}  Kh6 {[%clk 0:00:03]} 67. Rg8 {[%clk 0:00:04]}  Kh7 {[%clk 0:00:04]} 68. R8g5 {[%clk 0:00:04]}  Kh6 {[%clk 0:00:04]} 69. Kxd4 {[%clk 0:00:04]}  a1=Q+ {[%clk 0:00:04]} 70. Kc5 {[%clk 0:00:05]}  Qc1+ {[%clk 0:00:02]} 71. Kd6 {[%clk 0:00:05]}  Qxg5 {[%clk 0:00:02]} 72. Rxg5 {[%clk 0:00:06]}  Kxg5 {[%clk 0:00:03]} 73. Kxe6 {[%clk 0:00:06]}  a5 {[%clk 0:00:04]} 74. Kd5 {[%clk 0:00:03]}  a4 {[%clk 0:00:05]} 75. e6 {[%clk 0:00:04]}  a3 {[%clk 0:00:02]} 76. e7 {[%clk 0:00:04]}  a2 {[%clk 0:00:03]} 77. e8=Q {[%clk 0:00:04]}  a1=Q {[%clk 0:00:04]} 78. Qe5+ {[%clk 0:00:03]}  Kh4 {[%clk 0:00:04]} 79. Qxa1 {[%clk 0:00:03]}  Kg4 {[%clk 0:00:03]} 80. Qg7+ {[%clk 0:00:03]}  Kh3 {[%clk 0:00:03]} 81. Ke4 {[%clk 0:00:04]}  Kh4 {[%clk 0:00:04]} 82. Kf4 {[%clk 0:00:04]}  Kh5 {[%clk 0:00:05]} 83. Qh7# {[%clk 0:00:04]} 1-0

[Event "December 12 Early 2023"]
[Site "https://www.chess.com"]
[Date "2023.12.12"]
[Round "3"]
[White "Sourath Biswas"]
[Black "Zhigalko, Sergei"]
[Result "0-1"]
[Board "19"]
[TimeControl "180+1"]
[WhiteFideId "35091484"]
[BlackFideId "13502956"]
[WhiteElo "2714"]
[BlackElo "2957"]
[WhiteTeam "IND"]
[BlackTeam "BLR"]
[WhiteClock "0:00:00"]
[BlackClock "0:00:18"]

1. d4 {[%clk 0:01:48]}  Nf6 {[%clk 0:03:00]} 2. Nf3 {[%clk 0:01:49]}  e6 {[%clk 0:02:59]} 3. Bf4 {[%clk 0:01:48]}  b6 {[%clk 0:02:59]} 4. e3 {[%clk 0:01:48]}  Bb7 {[%clk 0:03:00]} 5. h3 {[%clk 0:01:49]}  Bd6 {[%clk 0:02:59]} 6. Bxd6 {[%clk 0:01:47]}  cxd6 {[%clk 0:03:00]} 7. Nbd2 {[%clk 0:01:48]}  O-O {[%clk 0:03:00]} 8. a4 {[%clk 0:01:48]}  Nc6 {[%clk 0:02:59]} 9. c3 {[%clk 0:01:46]}  d5 {[%clk 0:02:54]} 10. Bd3 {[%clk 0:01:45]}  d6 {[%clk 0:02:48]} 11. Qe2 {[%clk 0:01:42]}  e5 {[%clk 0:02:45]} 12. dxe5 {[%clk 0:01:40]}  dxe5 {[%clk 0:02:44]} 13. Ba6 {[%clk 0:01:36]}  Qc8 {[%clk 0:02:31]} 14. Bxb7 {[%clk 0:01:34]}  Qxb7 {[%clk 0:02:32]} 15. O-O {[%clk 0:01:32]}  Rad8 {[%clk 0:02:31]} 16. e4 {[%clk 0:01:02]}  d4 {[%clk 0:02:31]} 17. Nc4 {[%clk 0:01:02]}  Qa6 {[%clk 0:02:13]} 18. b4 {[%clk 0:01:03]}  d3 {[%clk 0:01:39]} 19. Qa2 {[%clk 0:01:01]}  b5 {[%clk 0:01:30]} 20. Ncxe5 {[%clk 0:00:59]}  Nxe5 {[%clk 0:01:15]} 21. Nxe5 {[%clk 0:01:00]}  Nxe4 {[%clk 0:01:15]} 22. c4 {[%clk 0:00:30]}  Qd6 {[%clk 0:01:04]} 23. Nf3 {[%clk 0:00:23]}  Qxb4 {[%clk 0:00:38]} 24. axb5 {[%clk 0:00:20]}  Nc3 {[%clk 0:00:29]} 25. Qxa7 {[%clk 0:00:16]}  d2 {[%clk 0:00:28]} 26. Nxd2 {[%clk 0:00:17]}  Rxd2 {[%clk 0:00:28]} 27. b6 {[%clk 0:00:15]}  Rb2 {[%clk 0:00:28]} 28. Kh1 {[%clk 0:00:04]}  Qxb6 {[%clk 0:00:26]} 29. Qe7 {[%clk 0:00:04]}  Rxf2 {[%clk 0:00:18]} 30. Rxf2 {[%clk 0:00:00]}  Qxf2 {[%clk 0:00:18]} 0-1

[Event "December 12 Early 2023"]
[Site "https://www.chess.com"]
[Date "2023.12.12"]
[Round "3"]
[White "Bok, Benjamin"]
[Black "Rosen, Eric"]
[Result "1-0"]
[Board "20"]
[TimeControl "180+1"]
[WhiteFideId "1017063"]
[BlackFideId "2032562"]
[WhiteElo "2951"]
[BlackElo "2708"]
[WhiteTeam "NED"]
[BlackTeam "USA"]
[WhiteClock "0:00:07"]
[BlackClock "0:00:00"]

1. Nf3 {[%clk 0:03:00]}  d5 {[%clk 0:02:59]} 2. d4 {[%clk 0:03:00]}  Nf6 {[%clk 0:03:00]} 3. c4 {[%clk 0:03:00]}  e6 {[%clk 0:03:00]} 4. Nc3 {[%clk 0:02:57]}  Nbd7 {[%clk 0:03:01]} 5. cxd5 {[%clk 0:02:55]}  exd5 {[%clk 0:03:02]} 6. Bg5 {[%clk 0:02:55]}  c6 {[%clk 0:03:01]} 7. e3 {[%clk 0:02:55]}  h6 {[%clk 0:03:02]} 8. Bh4 {[%clk 0:02:55]}  g5 {[%clk 0:03:02]} 9. Bg3 {[%clk 0:02:55]}  Nh5 {[%clk 0:03:03]} 10. Bd3 {[%clk 0:02:51]}  Nxg3 {[%clk 0:03:04]} 11. hxg3 {[%clk 0:02:52]}  Bg7 {[%clk 0:03:04]} 12. Qc2 {[%clk 0:02:50]}  Nb6 {[%clk 0:03:04]} 13. O-O-O {[%clk 0:02:49]}  Be6 {[%clk 0:03:02]} 14. Bf5 {[%clk 0:02:47]}  Qe7 {[%clk 0:02:45]} 15. Bxe6 {[%clk 0:02:37]}  Qxe6 {[%clk 0:02:44]} 16. Nd2 {[%clk 0:02:37]}  O-O-O {[%clk 0:02:35]} 17. Nb3 {[%clk 0:02:34]}  Nc4 {[%clk 0:02:34]} 18. Nc5 {[%clk 0:02:32]}  Qe7 {[%clk 0:02:34]} 19. b3 {[%clk 0:02:02]}  Nd6 {[%clk 0:02:34]} 20. g4 {[%clk 0:02:02]}  Kb8 {[%clk 0:02:31]} 21. Kb1 {[%clk 0:02:01]}  Rhf8 {[%clk 0:02:22]} 22. Ne2 {[%clk 0:01:48]}  f5 {[%clk 0:02:17]} 23. gxf5 {[%clk 0:01:48]}  Nxf5 {[%clk 0:02:17]} 24. g4 {[%clk 0:01:45]}  Nd6 {[%clk 0:02:11]} 25. Ng3 {[%clk 0:01:45]}  Rf7 {[%clk 0:02:04]} 26. Nf5 {[%clk 0:01:39]}  Nxf5 {[%clk 0:01:39]} 27. gxf5 {[%clk 0:01:40]}  Qf6 {[%clk 0:01:39]} 28. Ne6 {[%clk 0:01:37]}  Re8 {[%clk 0:01:35]} 29. f3 {[%clk 0:01:31]}  Bf8 {[%clk 0:00:50]} 30. e4 {[%clk 0:01:21]}  a5 {[%clk 0:00:22]} 31. Rde1 {[%clk 0:01:04]}  Bb4 {[%clk 0:00:21]} 32. Re2 {[%clk 0:00:59]}  Ka7 {[%clk 0:00:15]} 33. e5 {[%clk 0:00:58]}  Qe7 {[%clk 0:00:12]} 34. Rxh6 {[%clk 0:00:55]}  Rg8 {[%clk 0:00:06]} 35. Rg2 {[%clk 0:00:38]}  Rh7 {[%clk 0:00:06]} 36. f6 {[%clk 0:00:33]}  Qxe6 {[%clk 0:00:06]} 37. Rxh7 {[%clk 0:00:32]}  g4 {[%clk 0:00:05]} 38. f4 {[%clk 0:00:21]}  g3 {[%clk 0:00:03]} 39. f5 {[%clk 0:00:21]}  Qc8 {[%clk 0:00:03]} 40. f7 {[%clk 0:00:20]}  Rg4 {[%clk 0:00:03]} 41. e6 {[%clk 0:00:17]}  Rxd4 {[%clk 0:00:02]} 42. Rxg3 {[%clk 0:00:17]}  Qb8 {[%clk 0:00:01]} 43. Rg8 {[%clk 0:00:14]}  Qf4 {[%clk 0:00:01]} 44. f8=Q {[%clk 0:00:12]}  Qf1+ {[%clk 0:00:01]} 45. Kb2 {[%clk 0:00:08]}  Bxf8 {[%clk 0:00:01]} 46. Rxf8 {[%clk 0:00:08]}  Qe1 {[%clk 0:00:00]} 47. Qc5+ {[%clk 0:00:07]} 1-0

[Event "December 12 Early 2023"]
[Site "https://www.chess.com"]
[Date "2023.12.12"]
[Round "3"]
[White "Manelyuk, Daniil"]
[Black "Chigaev, Maksim"]
[Result "1-0"]
[Board "22"]
[TimeControl "180+1"]
[WhiteFideId "44173920"]
[BlackFideId "4108116"]
[WhiteElo "2695"]
[BlackElo "2941"]
[WhiteTeam "RUS"]
[BlackTeam "ESP"]
[WhiteClock "0:01:11"]
[BlackClock "0:00:01"]

1. e4 {[%clk 0:02:49]}  c5 {[%clk 0:02:53]} 2. Nf3 {[%clk 0:02:48]}  e6 {[%clk 0:02:53]} 3. c4 {[%clk 0:02:47]}  Nc6 {[%clk 0:02:50]} 4. Nc3 {[%clk 0:02:48]}  Nf6 {[%clk 0:02:50]} 5. Be2 {[%clk 0:02:43]}  e5 {[%clk 0:02:39]} 6. O-O {[%clk 0:02:41]}  d6 {[%clk 0:02:39]} 7. a3 {[%clk 0:02:39]}  Be7 {[%clk 0:02:32]} 8. Rb1 {[%clk 0:02:35]}  O-O {[%clk 0:02:19]} 9. d3 {[%clk 0:02:29]}  Kh8 {[%clk 0:02:17]} 10. b4 {[%clk 0:02:25]}  b6 {[%clk 0:02:16]} 11. bxc5 {[%clk 0:02:17]}  dxc5 {[%clk 0:02:16]} 12. Nd5 {[%clk 0:02:17]}  Nd7 {[%clk 0:02:04]} 13. a4 {[%clk 0:02:09]}  a5 {[%clk 0:02:01]} 14. Ne1 {[%clk 0:01:58]}  Bd6 {[%clk 0:01:56]} 15. Nc2 {[%clk 0:01:50]}  Nb4 {[%clk 0:01:56]} 16. Nce3 {[%clk 0:01:49]}  Nb8 {[%clk 0:01:52]} 17. Bg4 {[%clk 0:01:44]}  N8c6 {[%clk 0:01:27]} 18. Bxc8 {[%clk 0:01:35]}  Rxc8 {[%clk 0:01:28]} 19. Nf5 {[%clk 0:01:35]}  Bb8 {[%clk 0:01:28]} 20. Qg4 {[%clk 0:01:32]}  g6 {[%clk 0:01:28]} 21. Bh6 {[%clk 0:01:30]}  Rg8 {[%clk 0:01:02]} 22. Nfe7 {[%clk 0:01:19]}  Nxe7 {[%clk 0:00:43]} 23. Bg5 {[%clk 0:01:19]}  Nbxd5 {[%clk 0:00:17]} 24. cxd5 {[%clk 0:01:18]}  Rf8 {[%clk 0:00:04]} 25. Bf6+ {[%clk 0:01:15]}  Kg8 {[%clk 0:00:04]} 26. Qg5 {[%clk 0:01:13]}  Qd6 {[%clk 0:00:02]} 27. Bxe7 {[%clk 0:01:13]}  f6 {[%clk 0:00:02]} 28. Bxd6 {[%clk 0:01:13]}  fxg5 {[%clk 0:00:02]} 29. Bxf8 {[%clk 0:01:13]}  Kxf8 {[%clk 0:00:03]} 30. Rxb6 {[%clk 0:01:13]}  Ke7 {[%clk 0:00:02]} 31. Rfb1 {[%clk 0:01:12]}  Bd6 {[%clk 0:00:03]} 32. Rb7+ {[%clk 0:01:12]}  Kf6 {[%clk 0:00:01]} 33. R1b6 {[%clk 0:01:11]} 1-0

[Event "December 12 Early 2023"]
[Site "https://www.chess.com"]
[Date "2023.12.12"]
[Round "3"]
[White "Chinguun, Sumiya"]
[Black "Kovalenko, Igor"]
[Result "0-1"]
[Board "23"]
[TimeControl "180+1"]
[WhiteFideId "4902572"]
[BlackFideId "14117908"]
[WhiteElo "2691"]
[BlackElo "2927"]
[WhiteTeam "MGL"]
[BlackTeam "UKR"]
[WhiteClock "0:01:51"]
[BlackClock "0:02:27"]

1. e4 {[%clk 0:02:59]}  d5 {[%clk 0:02:59]} 2. exd5 {[%clk 0:02:59]}  Qxd5 {[%clk 0:03:00]} 3. Nf3 {[%clk 0:03:00]}  Bg4 {[%clk 0:02:59]} 4. d4 {[%clk 0:03:00]}  Nc6 {[%clk 0:02:59]} 5. c3 {[%clk 0:03:00]}  O-O-O {[%clk 0:02:58]} 6. Be2 {[%clk 0:03:00]}  Nf6 {[%clk 0:02:57]} 7. h3 {[%clk 0:02:59]}  Bh5 {[%clk 0:02:56]} 8. O-O {[%clk 0:02:59]}  e6 {[%clk 0:02:54]} 9. Bf4 {[%clk 0:02:58]}  Bd6 {[%clk 0:02:54]} 10. Bxd6 {[%clk 0:02:58]}  Qxd6 {[%clk 0:02:54]} 11. Nbd2 {[%clk 0:02:58]}  Qe7 {[%clk 0:02:53]} 12. b4 {[%clk 0:02:58]}  Nd5 {[%clk 0:02:52]} 13. Qb3 {[%clk 0:02:56]}  Nf4 {[%clk 0:02:52]} 14. Bd1 {[%clk 0:02:55]}  e5 {[%clk 0:02:51]} 15. Nxe5 {[%clk 0:02:50]}  Nxe5 {[%clk 0:02:51]} 16. Bxh5 {[%clk 0:02:44]}  Qg5 {[%clk 0:02:50]} 17. g4 {[%clk 0:02:27]}  Nxh3+ {[%clk 0:02:40]} 18. Kh2 {[%clk 0:02:26]}  Nf4 {[%clk 0:02:27]} 19. dxe5 {[%clk 0:02:13]}  Qh4+ {[%clk 0:02:27]} 20. Kg1 {[%clk 0:01:51]}  Qh3 {[%clk 0:02:27]} 0-1

[Event "December 12 Early 2023"]
[Site "https://www.chess.com"]
[Date "2023.12.12"]
[Round "3"]
[White "Rasulov, Vugar"]
[Black "Poormosavi, Seyed Kian"]
[Result "0-1"]
[Board "24"]
[TimeControl "180+1"]
[WhiteFideId "13402390"]
[BlackFideId "12585807"]
[WhiteElo "2915"]
[BlackElo "2685"]
[WhiteTeam "AZE"]
[BlackTeam "IRI"]
[WhiteClock "0:00:07"]
[BlackClock "0:00:40"]

1. e4 {[%clk 0:03:00]}  c6 {[%clk 0:02:59]} 2. Ne2 {[%clk 0:03:00]}  d5 {[%clk 0:03:00]} 3. e5 {[%clk 0:03:00]}  c5 {[%clk 0:02:56]} 4. d4 {[%clk 0:02:53]}  cxd4 {[%clk 0:02:48]} 5. Nxd4 {[%clk 0:02:54]}  Nc6 {[%clk 0:02:46]} 6. Bb5 {[%clk 0:02:47]}  Bd7 {[%clk 0:02:38]} 7. O-O {[%clk 0:02:37]}  e6 {[%clk 0:02:38]} 8. Nxc6 {[%clk 0:02:30]}  Bxc6 {[%clk 0:02:37]} 9. Bxc6+ {[%clk 0:02:26]}  bxc6 {[%clk 0:02:38]} 10. c4 {[%clk 0:02:25]}  Ne7 {[%clk 0:02:37]} 11. Bg5 {[%clk 0:02:15]}  h6 {[%clk 0:02:34]} 12. Bxe7 {[%clk 0:02:06]}  Bxe7 {[%clk 0:02:34]} 13. Qa4 {[%clk 0:02:06]}  O-O {[%clk 0:02:34]} 14. Nd2 {[%clk 0:02:06]}  Qb6 {[%clk 0:02:31]} 15. b3 {[%clk 0:01:57]}  Rfd8 {[%clk 0:02:21]} 16. Nf3 {[%clk 0:01:54]}  d4 {[%clk 0:02:14]} 17. Rad1 {[%clk 0:01:48]}  d3 {[%clk 0:02:14]} 18. g3 {[%clk 0:01:36]}  a5 {[%clk 0:02:10]} 19. Kg2 {[%clk 0:01:37]}  Rd7 {[%clk 0:01:57]} 20. c5 {[%clk 0:01:17]}  Bxc5 {[%clk 0:01:52]} 21. Qc4 {[%clk 0:01:14]}  Rad8 {[%clk 0:01:51]} 22. h4 {[%clk 0:01:14]}  d2 {[%clk 0:01:43]} 23. h5 {[%clk 0:01:05]}  Qb5 {[%clk 0:01:36]} 24. Qxb5 {[%clk 0:00:57]}  cxb5 {[%clk 0:01:37]} 25. Rh1 {[%clk 0:00:57]}  Rd3 {[%clk 0:01:21]} 26. Rh4 {[%clk 0:00:57]}  R8d5 {[%clk 0:01:18]} 27. Re4 {[%clk 0:00:56]}  Ba3 {[%clk 0:01:13]} 28. g4 {[%clk 0:00:47]}  Bb4 {[%clk 0:00:54]} 29. Re2 {[%clk 0:00:39]}  Rc5 {[%clk 0:00:50]} 30. a3 {[%clk 0:00:23]}  Rc1 {[%clk 0:00:48]} 31. Rexd2 {[%clk 0:00:12]}  Bxd2 {[%clk 0:00:47]} 32. Rxd2 {[%clk 0:00:12]}  Rxd2 {[%clk 0:00:45]} 33. Nxd2 {[%clk 0:00:13]}  Ra1 {[%clk 0:00:45]} 34. b4 {[%clk 0:00:09]}  Rxa3 {[%clk 0:00:44]} 35. bxa5 {[%clk 0:00:09]}  Rxa5 {[%clk 0:00:44]} 36. Nb3 {[%clk 0:00:10]}  Ra3 {[%clk 0:00:41]} 37. Nd4 {[%clk 0:00:07]}  b4 {[%clk 0:00:40]} 0-1